Cogmind - Beta 15 @@@ ROGUE MODE // 2025.09.06 @ 10:22:06 Player: beans Result: Destroyed by BO-7Q5(j) with Overtuned Pulse Rifle Performance ------------- Evolutions (0) 0 Regions Visited (4) 800 Robots Destroyed (25) 125 Value Destroyed (697) 697 Prototype IDs (7) 140 Alien Tech Used (0) 0 Bonus (800) 800 TOTAL SCORE: 2562 Bonus ------- Registered with UFD 300 Met Optimus in HQ 500 Cogmind --------- Core Integrity 0/250 Matter 300/300 Energy 136/140 System Corruption 0% Temperature Cool (14) Movement Walking (90) Location -7/Scraptown Parts ------- > --- POWER (1) -------- Light Deuterium Engine > --- PROPULSION (2) --- VSS Leg > --- UTILITY (2) ------ Improved Signal Interpreter Makeshift Targeting Computer > --- WEAPON (2) ------- Advanced Assault Cannon > --- INVENTORY (5) ---- Improved Heat Sink High-capacity Matter Pod (200) Heavy Ion Cannon Heavy Missile Launcher Peak State ------------ > --- POWER ------------ Light Deuterium Engine > --- PROPULSION ------- Xenon Bombardment Thruster Nuclear Pulse Thruster > --- UTILITY ---------- Improved Signal Interpreter > --- WEAPON ----------- Heavy Ion Cannon Advanced Assault Cannon > --- INVENTORY -------- Subdweller Monowheel Improved Heat Sink High-capacity Matter Pod Subdweller Shrapnel Launcher Missile Launcher [Rating: 24] Favorites ----------- Power Subdweller Power Source Engine Subdweller Power Source Propulsion Nuclear Pulse Thruster Treads Improved Treads Leg VSS Leg Wheel Subdweller Monowheel Flight Unit Nuclear Pulse Thruster Utility Hardened Light Armor Plating Processor Improved Signal Interpreter Protection Hardened Light Armor Plating Weapon Heavy Assault Rifle Energy Cannon Heavy Ion Cannon Ballistic Gun Heavy Assault Rifle Ballistic Cannon Advanced Assault Cannon Launcher Subdweller Shrapnel Launcher Special Weapon Flamer Build | -11 -10 -10 -7 -7 ------- Run | Yrd Mat Sub Rec Scr Slots Evolved . | . . . . . Power . | . . . . . Propulsion . | . . . . . Utility . | . . . . . Weapon . | . . . . . Parts Attached 25 | 3 6 2 2 12 Power 4 | . . 1 . 3 Engine 4 | . . 1 . 3 Core . | . . . . . Reactor . | . . . . . Propulsion 8 | 2 2 . . 4 Treads 4 | 2 2 . . . Leg 1 | . . . . 1 Wheel 1 | . . . . 1 Hover . | . . . . . Flight 2 | . . . . 2 Utility 4 | . 2 . . 2 Device . | . . . . . Storage . | . . . . . Processor 2 | . . . . 2 Hackware . | . . . . . Protection 2 | . 2 . . . Artifact . | . . . . . Weapon 9 | 1 2 1 2 3 Energy Gun . | . . . . . Energy Cannon 1 | . . . . 1 Ballistic Gun 5 | 1 2 . 2 . Ballistic Cannon 1 | . . . . 1 Launcher 1 | . . 1 . . Special Weapon 1 | . . . . 1 Impact Weapon . | . . . . . Slashing Weapon . | . . . . . Piercing Weapon . | . . . . . Special Melee Weapon . | . . . . . Unidentified Prototypes . | . . . . . Parts Lost 7 | . . 2 3 2 Power . | . . . . . Propulsion 4 | . . . 2 2 Utility 2 | . . 1 1 . Weapon 1 | . . 1 . . Highest Loss Streak 2 | . . 1 2 2 To Critical Strikes . | . . . . . Average Backups 4 | . 2 4 4 4 Power . | . . . . . Propulsion . | . . . 1 . Utility 1 | . . 1 1 2 Weapon 1 | . 1 2 2 1 Tool/Special . | . . . . . Unused Backups 4 | . . . . 4 Power . | . . . . . Propulsion . | . . . . . Utility 2 | . . . . 2 Weapon 2 | . . . . 2 Tool/Special . | . . . . . Average Slot Usage (%) 55 | . 69 90 55 48 Engine 6 | . . 9 14 5 Treads 6 | . 28 28 8 . Flight 10 | . . . . 14 Processor 3 | . . . . 4 Protection 4 | . 14 25 5 . Energy Cannon 1 | . . . . 1 Ballistic Gun 8 | . 25 22 24 1 Ballistic Cannon 7 | . . . . 10 Launcher 5 | . . 3 1 6 Peak Build Rating 24 | 3 12 14 12 24 Average Rating 11 | 2 9 12 8 12 On Entrance 6 | . 3 12 10 7 Naked Turns . | . . . . . Heaviest Build 26 | 2 16 26 21 14 Greatest Support 46 | 40 46 46 46 20 Greatest Overweight (x) 3 | . . . 3 3 Average Overweight (x) . | . . . 1 . Largest Inventory Capacity 5 | 5 5 5 5 5 Average Capacity 5 | 5 5 5 5 5 Most Carried 5 | 3 4 5 5 5 Average Carried 4 | . 2 4 4 4 Final Capacity 5 | 5 5 5 5 5 Final Carried 5 | . 3 5 5 4 Class Distribution -------------------- 100% | Mutant Dominant Class ---------------- Mutant | -10/Materials Mutant | -10/Subcaves Mutant | -7/Recycling Mutant | -7/Scraptown Resources | -11 -10 -10 -7 -7 ----------- Run | Yrd Mat Sub Rec Scr Matter Collected 1256 | 132 136 224 321 443 Remotely . | . . . . . Salvage Created 909 | . 230 263 366 50 Parts 55 | . 13 23 17 2 Haulers Intercepted . | . . . . . Recyclers Shooed 1 | . . . 1 . Parts Field Recycled . | . . . . . Retrieved Matter . | . . . . . Parts Self-Destructed . | . . . . . Prevented . | . . . . . Kills | -11 -10 -10 -7 -7 ------- Run | Yrd Mat Sub Rec Scr Combat Hostiles Destroyed 20 | . 6 10 3 1 Guns 14 | . 6 5 3 . Cannons 1 | . . . . 1 AOE 5 | . . 5 . . Classes Destroyed 7 | . 3 2 1 1 Recycler 3 | . 1 . 2 . Turret 2 | . . 2 . . Swarmer 7 | . 3 4 . . Grunt 3 | . 3 . . . Sentry 3 | . . . 3 . Subdweller 6 | . . 6 . . Ranger 1 | . . . . 1 Best Kill Streak 6 | . 4 6 3 1 Combat Bots Only 4 | . 3 4 2 1 Max Kills in Single Turn 2 | . 1 2 1 1 Gunslinging . | . . . . . Exploded 2 | . . 2 . . Melee . | . . . . . Uniques/NPCs Destroyed . | . . . . . Combat | -11 -10 -10 -7 -7 -------- Run | Yrd Mat Sub Rec Scr Hostile Shots Fired 215 | . 31 37 126 21 Missed 80 | . 10 10 50 10 Hits 135 | . 21 27 76 11 Projectile 135 | . 21 27 76 11 AOE 4 | . . 4 . . Critical Strikes 2 | . . 1 . 1 Damage Taken 1521 | . 183 613 582 143 Core 259 | . 29 129 46 55 Absorbed by Shields . | . . . . . Core Remaining (%) 100 | 100 . . . . Volleys Fired 76 | . 19 21 27 9 Largest 2 | . 2 2 2 1 Hottest 63 | . 46 63 46 40 Shots Fired 135 | . 38 36 52 9 Gun 119 | . 38 29 52 . Cannon 9 | . . . . 9 Launcher 7 | . . 7 . . Special . | . . . . . Kinetic 135 | . 38 36 52 9 Thermal . | . . . . . Explosive . | . . . . . Electromagnetic . | . . . . . Robot Hit Streak 11 | . 7 5 11 6 Robot Miss Streak 5 | . 5 2 2 1 Penetration Max . | . . . . . Secondary Targets . | . . . . . Shots Hit Robots 85 | . 21 18 39 7 Core Hits 43 | . 8 22 11 2 Critical Kills 2 | . . . 2 . Critical Parts Destroyed 1 | . 1 . . . Critical Strikes 4 | . 1 . 2 1 Destroy 3 | . 1 . 2 . Blast 1 | . . . . 1 Melee Attacks . | . . . . . Impact . | . . . . . Slashing . | . . . . . Piercing . | . . . . . Sneak Attacks . | . . . . . Combat Hostiles . | . . . . . Follow-up Attacks . | . . . . . Damage Inflicted 1930 | . 309 850 600 171 Guns 1168 | . 309 259 600 . Cannons 171 | . . . . 171 Explosions 591 | . . 591 . . Melee . | . . . . . Ramming . | . . . . . Kinetic 1930 | . 309 850 600 171 Thermal . | . . . . . Explosive . | . . . . . Electromagnetic . | . . . . . Impact . | . . . . . Slashing . | . . . . . Piercing . | . . . . . Highest Corruption . | . . . . . Average Corruption . | . . . . . Corruption Purged . | . . . . . Corruption Blocked . | . . . . . Overload Shots . | . . . . . Overflow Damage 32 | . . 27 . 5 Projectiles 5 | . . . . 5 Explosions 27 | . . 27 . . Melee . | . . . . . Knockbacks . | . . . . . Impact . | . . . . . Kinetic . | . . . . . Secondary . | . . . . . Self-Inflicted Damage . | . . . . . Shots . | . . . . . Rammed . | . . . . . Targets Rammed . | . . . . . Kicked . | . . . . . Crushed . | . . . . . Highest Temperature 108 | . 18 3 108 30 Average Temperature 27 | . 9 2 39 11 Received Heat Transfer 330 | . 48 90 180 12 Siege Activations . | . . . . . Martial Activations . | . . . . . Shielding Activations . | . . . . . Robots Disrupted . | . . . . . Combat Hostiles . | . . . . . Robots Corrupted . | . . . . . Combat Hostiles . | . . . . . Parts Fried . | . . . . . Impact Corruptions . | . . . . . Robots Melted . | . . . . . Combat Hostiles . | . . . . . Parts Melted . | . . . . . Heat Transferred . | . . . . . Parts Sabotaged . | . . . . . Parts Stolen . | . . . . . Parts Stripped . | . . . . . Power Chain Reactions . | . . . . . Alert | -11 -10 -10 -7 -7 ------- Run | Yrd Mat Sub Rec Scr Maximum Alert Level . | . . . . . Low Security (%) 100 | 100 100 . 100 . Level 1 . | . . . . . Level 2 . | . . . . . Level 3 . | . . . . . Level 4 . | . . . . . Level 5 . | . . . . . High Security . | . . . . . Max Security . | . . . . . Peak Influence 65 | . 65 . 45 . Initial 45 | . . . 45 . Average 14 | . 26 . 7 . Influence Increases 350 | . 145 135 70 . Destroy 0b10 Robot/C 300 | . 120 120 60 . Destroy 0b10 Robot/NC 15 | . 5 . 10 . Destroy Leader 20 | . 20 . . . Lose Combat Pursuer 15 | . . 15 . . Influence Decreases 350 | . 110 75 165 . Entered New Map 68 | . . 18 50 . Time Decay 252 | . 110 47 95 . Lost Part 30 | . . 10 20 . Squads Dispatched 1 | . 1 . . . Investigation 1 | . 1 . . . Extermination . | . . . . . Reinforcement . | . . . . . Assault . | . . . . . Garrison . | . . . . . Intercept . | . . . . . Searches Triggered . | . . . . . Construction Impeded . | . . . . . Haulers Reinforced . | . . . . . Active Scanning Responses . | . . . . . Cargo Convoy Interrupts . | . . . . . Stealth | -11 -10 -10 -7 -7 --------- Run | Yrd Mat Sub Rec Scr Distress Signals . | . . . . . Communications Jammed . | . . . . . Distress Signals . | . . . . . Times Spotted 34 | . 6 12 3 13 Peak Tracking Total 7 | . 2 6 2 7 Tactical Retreats 2 | . . 1 . 1 Traps | -11 -10 -10 -7 -7 ------- Run | Yrd Mat Sub Rec Scr Traps Triggered . | . . . . . Indirectly . | . . . . . Trap Hack Attempts . | . . . . . Triggered . | . . . . . Disarmed . | . . . . . Reprogrammed . | . . . . . Reused . | . . . . . Traps Extracted . | . . . . . Installed . | . . . . . Triggered . | . . . . . Machines | -11 -10 -10 -7 -7 ---------- Run | Yrd Mat Sub Rec Scr Machines Disabled 5 | . . 4 . 1 Max in Single Turn 1 | . . 1 . 1 Machines Repaired . | . . . . . Machines Dismantled . | . . . . . Machines Sabotaged . | . . . . . Overloaded Fab Kills . | . . . . . Hacking | -11 -10 -10 -7 -7 --------- Run | Yrd Mat Sub Rec Scr Machines Accessed 6 | . 1 . . 5 Terminals 1 | . 1 . . . Fabricators . | . . . . . Repair Stations . | . . . . . Recycling Units . | . . . . . Scanalyzers . | . . . . . Garrison Access . | . . . . . Total Hacks 47 | . 2 . . 45 Successful 45 | . . . . 45 Failed 2 | . 2 . . . Catastrophic 1 | . 1 . . . Database Lockouts . | . . . . . Manual 1 | . 1 . . . Terminals 2 | . 2 . . . Fabricators . | . . . . . Repair Stations . | . . . . . Recycling Units . | . . . . . Scanalyzers . | . . . . . Garrison Access . | . . . . . Terminal Hacks 45 | . . . . 45 Record 44 | . . . . 44 Proto ID Catalog 1 | . . . . 1 Fabricator Hacks . | . . . . . Repair Station Hacks . | . . . . . Recycling Unit Hacks . | . . . . . Scanalyzer . | . . . . . Garrison Access Hacks . | . . . . . Unauthorized Hacks . | . . . . . Terminals . | . . . . . Fabricators . | . . . . . Repair Stations . | . . . . . Recycling Units . | . . . . . Scanalyzers . | . . . . . Garrison Access . | . . . . . Data Cores Recovered . | . . . . . Used . | . . . . . Hacking Detections 1 | . 1 . . . Full Trace Events 1 | . 1 . . . Feedback Events . | . . . . . Feedback Blocked . | . . . . . Robot Schematics Acquired . | . . . . . Robots Built . | . . . . . Authchips . | . . . . . Time . | . . . . . Total Robot Build Rating . | . . . . . Part Schematics Acquired . | . . . . . Parts Built . | . . . . . Authchips . | . . . . . Time . | . . . . . Total Part Build Rating . | . . . . . Parts Repaired . | . . . . . Time . | . . . . . Parts Recycled . | . . . . . Recycled Matter . | . . . . . Retrieved Matter . | . . . . . Retrieved Components . | . . . . . Parts Scanalyzed . | . . . . . Part Schematics Acquired . | . . . . . Parts Damaged . | . . . . . Bothacking | -11 -10 -10 -7 -7 ------------ Run | Yrd Mat Sub Rec Scr Used RIF Installer . | . . . . . Robots Hacked . | . . . . . Non-combat . | . . . . . Combat . | . . . . . Robot Hacks Applied . | . . . . . Relay Couplers Released . | . . . . . Fabnet Peak Effective % . | . . . . . Robots Rewired . | . . . . . Allies Hacked . | . . . . . Hacks Repelled . | . . . . . Allies | -11 -10 -10 -7 -7 -------- Run | Yrd Mat Sub Rec Scr Total Allies . | . . . . . Largest Group . | . . . . . Highest-Rated Group . | . . . . . Highest-Rated Ally . | . . . . . Total Orders . | . . . . . Ally Attacks . | . . . . . Total Damage . | . . . . . Kills . | . . . . . Allies Corrupted . | . . . . . Allies Melted 3 | . . . . 3 Intel | -11 -10 -10 -7 -7 ------- Run | Yrd Mat Sub Rec Scr Active Infowar (turns) . | . . . . . Robot Analysis Total . | . . . . . Derelict Logs Recovered 2 | . . 2 . . Drone Launches . | . . . . . Drone Recoveries . | . . . . . Exploration | -11 -10 -10 -7 -7 ------------- Run | Yrd Mat Sub Rec Scr Turns Passed 3722 | 49 316 398 438 2521 Spaces Moved 2233 | 39 151 210 192 1641 Core 248 | 17 . . 112 119 Treads 463 | 22 151 210 80 . Legs 114 | . . . . 114 Wheels 47 | . . . . 47 Hover . | . . . . . Flight 1361 | . . . . 1361 Fastest Speed 37 | 50 160 160 160 37 Average Speed 130 | 112 160 160 183 118 Slowest Speed 200 | 160 160 160 200 200 Overloaded Moves . | . . . . . Propulsion Burnouts . | . . . . . Robots Hopped . | . . . . . Potential Cave-ins . | . . . . . Cave-ins Triggered . | . . . . . Exploration Rate (%) 34 | 3 21 22 42 86 Regions Visited 4 Branch Regions 3 Pre-discovered Areas 6 | . . 1 . 5 Known Exits Taken . | . . . . . Unknown Exits Taken 4 | 1 1 1 1 . Scrap Searched 5 | . . . . 5 Spaces Dug 5 | . . 5 . . Terrain Destroyed 46 | . . 46 . . Melee . | . . . . . Projectile . | . . . . . AOE 46 | . . 46 . . Terrain Rammed . | . . . . . Walls Destroyed . | . . . . . Machines Disabled . | . . . . . Actions | -11 -10 -10 -7 -7 --------- Run | Yrd Mat Sub Rec Scr Total 2902 | 44 188 236 225 2209 Wait 513 | . 1 . . 512 Move 2229 | 38 150 209 191 1641 Hop . | . . . . . Pick Up 26 | 3 9 3 2 9 Fast Attach 9 | . . 1 . 8 Attach 19 | 3 3 1 2 10 Detach 5 | . . . . 5 Swap 6 | . 3 . 2 1 Drop 19 | . 3 1 1 14 Fire 76 | . 19 21 27 9 Melee . | . . . . . Ram . | . . . . . Kick . | . . . . . Crush . | . . . . . Escape Stasis . | . . . . . Rewire . | . . . . . Trap . | . . . . . Miscellaneous . | . . . . . Route ------- -11/Scrapyard -10/Materials -10/Subcaves (discovered 2 exits: [*Mat] / *Rec) -7/Recycling -7/Scraptown (discovered 2 exits: *Fac x2) History --------- Turn | Location | Event 6 | -11/Scrapyard | Discovered new exit (range 14) 50 | -11/Scrapyard | Entered Materials 277 | -10/Materials | Discovered new exit (range 9) 313 | -10/Materials | Build established: Mutant 366 | -10/Materials | Entered Subcaves 384 | -10/Subcaves | Learned Materials trap positions 412 | -10/Subcaves | Ambushed by Subdweller buried in earth 438 | -10/Subcaves | Ambushed by Subdweller buried in earth 444 | -10/Subcaves | Core integrity fell below 50% 598 | -10/Subcaves | Learned location of Zion (-6) 678 | -10/Subcaves | Discovered new exit (range 15) 716 | -10/Subcaves | Discovered new exit (range 14) 764 | -10/Subcaves | Entered Recycling 953 | -7/Recycling | Core integrity fell below 20% 1145 | -7/Recycling | Scanned before Scraplab entrance 1175 | -7/Recycling | Entered Scraplab 1193 | -7/Recycling | Discovered new exit (range 3) 1202 | -7/Recycling | Entered Scraptown 1648 | -7/Scraptown | Discovered new exit (range 13) 1821 | -7/Scraptown | Visited Awakened 1839 | -7/Scraptown | Visited Fellowship of the Rings 1895 | -7/Scraptown | Visited IN-MT5's Study 1955 | -7/Scraptown | Visited Comm Corps 1985 | -7/Scraptown | Visited Shadow of the Wyrm 2217 | -7/Scraptown | Visited Cyclists 2901 | -7/Scraptown | Visited UFD Registry 2901 | -7/Scraptown | Registered with UFD as "Boltform" 2912 | -7/Scraptown | Visited Research Penetration Think Tank 2918 | -7/Scraptown | Visited Curators Association 2937 | -7/Scraptown | Visited DA-N13 Charitable Foundation 2938 | -7/Scraptown | Found DCF Scrap (28 items) 2956 | -7/Scraptown | Visited Scrap Suit Storage 2968 | -7/Scraptown | Visited Derelict Rescue Squad 2979 | -7/Scraptown | Visited Junk Repository 2993 | -7/Scraptown | Visited Science Guys 3006 | -7/Scraptown | Visited Supply Room 3280 | -7/Scraptown | Entered Cyclist Reading Room 3370 | -7/Scraptown | Met Optimus 3370 | -7/Scraptown | Accepted into 0bPrime 3499 | -7/Scraptown | Visited Cartography Club 3525 | -7/Scraptown | Learned location of Lower Caves (-6) 3525 | -7/Scraptown | Learned location of Upper Caves (-5) 3525 | -7/Scraptown | Learned 4 Storage zone layouts 3525 | -7/Scraptown | Learned 4 Recycling zone layouts 3525 | -7/Scraptown | Learned 24 Upper Caves zone layouts 3525 | -7/Scraptown | Learned 20 Proximity Caves zone layouts 3525 | -7/Scraptown | Learned 4 Hub_04(d) zone layouts 3525 | -7/Scraptown | Learned location of 3 exits from Factory 3525 | -7/Scraptown | Learned location of 2 exits from Research 3525 | -7/Scraptown | Learned location of 3 exits from Lower Caves 3525 | -7/Scraptown | Identified exit to Factory 3525 | -7/Scraptown | Learned 4 Armory zone layouts 3525 | -7/Scraptown | Learned location of Testing (-2) 3558 | -7/Scraptown | Visited Abandonware Association 3560 | -7/Scraptown | Civil war broke out across Scraptown 3633 | -7/Scraptown | Lost 3 allies 3707 | -7/Scraptown | Optimus destroyed in the chaos of civil war 3723 | -7/Scraptown | Destroyed by BO-7Q5(j) with Overtuned Pulse Rifle Last Messages --------------- mission is important. Take the northeast exit, it's probably the safer route. Exit location confirmed. Acquired 42 matter. UFD Mainframe disabled. Slug penetrates Machine. Machine disabled. Slug penetrates Machine. JN-KJE(j) destroyed. CK-1IF(j) destroyed. Optimus: "Someone shut down Triborg? Who would do that? How?!" R8-1NC(E) destroyed. KY-RXP(E) destroyed. Acquired 6 matter. 8I-3NM(j): "Triborg not so powerful after all." BE-W44(l): "Not fair, they have Elites!" ANNOUNCEMENT: The traitor Optimus has been dealt with. Put down any remaining collaborators. [Achievement: I Think I Know What's Going On] Map ----- +----------------------------------------------------+ | ?????????????????????????????????????????????????? | | ?????????????????????????????????????????????????? | | ?????????????????????????????????????????????????? | | ?????????????????????????????????????????????????? | | ?????????????????????????????????????????????????? | | ?????????????????????????????????????????????????? | | ?????????????????????????????????????????????##### | | ???????????????????#############?????????????# # | | ???????????????????#"""""""""""#?????????????# ## | | ???????????????????#""" X """""#??????????? # # | | ???????????????????#"""" """#??????????# # | | ???????????????????#""!" "#??????????# ## ## | | ??????????##########"""" """#??????????# ## # | | ??????????# """! !!#"" """"############ ## | | ??????????# " "" # ""#] # #]=## ## # | | ??????????# "" #&" "" ""#! # #*!## # # | | ??????????# "" #&" "" ""# # # ## ##### | | ?????????## " "#" # ## # | | ?????????#" "# "# ## # | | ??????????#"# ########### ########### ##### ## ## | | #???????####"!!########## ###########%##### ## ## | | #???????#""""%="""""""""" "" "["""""!j""""" /""*"# | | #???????#" *!!%* !%*= [%=% /!%!! " | | #???????#" = [=%! =%&%!! %=%% "# | | #???????#" /[= !![%= ! ! " | | #???????#" @ *!* % / !"# | | #????####" * % | | #???#"""" " """"""""" " """ """ """ %!= | | #???#"""" """"""""""""""""""""""" """" %[ | | #???#"""" ""###### ################"" "# | | #???#"""" ""# ##????????#"" "# | | #???#"""" ""# X"#????????#"" "# | | ###?#"""" ""# "" "" ##????????#"" "# | | ""#"#"""" ""# "" "" X"#??????###"" "# | | """"#""" ""# " " ######### #"" "# | | ""#######"= "" " | | ###?????#=!! "" "" "# | | #########%%[ ""# " " ######### #" "# | | [!!=!== ""# "" "" ""#??????###"" "# | | !%[ !==%[[ ""# "" "" ##????????#"" "# | | %[[=[*!!*[ ""# X"#????????#"" "# | | !%! !!%=! ""# ##????????#"" "# | | !%![ ""###### ################"" "# | | [! """""""""""""""""""""""""""" "# | | """"""""""""""""""""""""""" | | = "# | | =%! = "# | | = ! = = "# | | !%#""""#!%[ *!!= = # | | =!#????# = ![*%! ! | +----------------------------------------------------+ Best States ------------- Heat Dissipation 25 Energy Generation 15 Energy Capacity 200 Matter Stores 300 Matter Capacity 300 Sight Range 16 Terrain Scan Density 10 Armor Coverage 300 Evasion (%) 62 Targeting Accuracy 10 Recoil Reduction 2 Item Schematics ----------------- None Robot Schematics ------------------ None Fabricated ------------ Nothing Repaired ---------- Nothing Alien Tech Used ----------------- None Achievements -------------- I Think I Know What's Going On Challenges ------------ None Game ------ Seed ActiveRiotRail Manual? 0 Play Time 00:24:24 Cumulative 126.8 hours Start 2025.09.06 @ 10:00:28 End 2025.09.06 @ 10:22:06 Sessions 1 Manual Loads 0 Difficulty Rogue Special Mode None Game No. 445 Rogue 445 Adventurer 0 Explorer 0 Win Type - Total 0 Types 0/0/0/0/0/0/0/0/0/0 Lore% 50 Gallery% 47 Achievement% 34 Wizard Run 0 Options --------- Layout 2 ASCII 0 Keyboard 0 Movement Mouse Keybinds 0 Fullscreen 2 Font 24/Smallcaps Map View 50x44 Zoom Use 0% Tactical HUD 0 Map Filters NONE Filters NONE Steam 1 RUN: 3f020c55-32b6-4d48-8e05-7fd543ce8102